[Event "*** Titled Tuesday Blitz"]
[Site "Chess.com"]
[Date "2020.04.21"]
[Round "2"]
[White "NDePinEsPeRG"]
[Black "maximnovik"]
[Result "1-0"]
[WhiteElo "2871"]
[BlackElo "2455"]
[TimeControl "180+1"]
[EndTime "10:20:42 PDT"]
[Termination "NDePinEsPeRG won on time"]

1. e4 {[%clk 0:03:00.9]} 1... c6 {[%clk 0:02:59.5]} 2. Nf3 {[%clk 0:02:59.9]}
2... d5 {[%clk 0:02:59.8]} 3. Nc3 {[%clk 0:02:58.6]} 3... Bg4 {[%clk 0:02:59.9]}
4. h3 {[%clk 0:02:57.1]} 4... Bxf3 {[%clk 0:03:00.1]} 5. Qxf3 {[%clk 0:02:56.2]}
5... e6 {[%clk 0:03:00.5]} 6. g3 {[%clk 0:02:55.3]} 6... Nf6 {[%clk 0:03:00.4]}
7. d3 {[%clk 0:02:51.5]} 7... Be7 {[%clk 0:02:55.5]} 8. Bg2 {[%clk 0:02:50.4]}
8... d4 {[%clk 0:02:53.7]} 9. Nb1 {[%clk 0:02:44.7]} 9... c5 {[%clk 0:02:49.8]}
10. Qe2 {[%clk 0:02:42.9]} 10... e5 {[%clk 0:02:46.7]} 11. O-O {[%clk
0:02:40.5]} 11... Nc6 {[%clk 0:02:46.8]} 12. Nd2 {[%clk 0:02:35.1]} 12... O-O
{[%clk 0:02:46.3]} 13. f4 {[%clk 0:02:33.3]} 13... g6 {[%clk 0:02:42]} 14. Nf3
{[%clk 0:02:27.7]} 14... Nh5 {[%clk 0:02:41.2]} 15. Qf2 {[%clk 0:02:25.1]} 15...
exf4 {[%clk 0:02:35.1]} 16. gxf4 {[%clk 0:02:19.1]} 16... f5 {[%clk 0:02:35]}
17. e5 {[%clk 0:02:14.5]} 17... Qd7 {[%clk 0:02:30.5]} 18. Bd2 {[%clk
0:02:12.6]} 18... Nd8 {[%clk 0:02:30.3]} 19. h4 {[%clk 0:02:07.5]} 19... h6
{[%clk 0:02:25.8]} 20. Ne1 {[%clk 0:02:06.4]} 20... Ne6 {[%clk 0:02:25.2]} 21.
Qf3 {[%clk 0:01:51.5]} 21... b6 {[%clk 0:02:08.6]} 22. Qd5 {[%clk 0:01:50.2]}
22... Rad8 {[%clk 0:02:08.3]} 23. Qxd7 {[%clk 0:01:44.5]} 23... Rxd7 {[%clk
0:02:08.3]} 24. Bc6 {[%clk 0:01:45]} 24... Rdd8 {[%clk 0:02:08.1]} 25. Ng2
{[%clk 0:01:43.8]} 25... Kf7 {[%clk 0:01:45.1]} 26. a4 {[%clk 0:01:42.4]} 26...
a5 {[%clk 0:01:42.7]} 27. Ra3 {[%clk 0:01:41.4]} 27... c4 {[%clk 0:01:39.5]} 28.
Raa1 {[%clk 0:01:33.4]} 28... cxd3 {[%clk 0:01:34.1]} 29. cxd3 {[%clk
0:01:32.8]} 29... Nc5 {[%clk 0:01:28.3]} 30. Ra3 {[%clk 0:01:32]} 30... Ng7
{[%clk 0:01:25.6]} 31. Bb5 {[%clk 0:01:27.4]} 31... Nge6 {[%clk 0:01:24.1]} 32.
Kf2 {[%clk 0:01:24.5]} 32... Kg7 {[%clk 0:01:21.3]} 33. Bc4 {[%clk 0:01:21.7]}
33... Rc8 {[%clk 0:01:12.6]} 34. Ke2 {[%clk 0:01:19.9]} 34... Rfe8 {[%clk
0:01:03.9]} 35. Raa1 {[%clk 0:01:18]} 35... h5 {[%clk 0:00:59.7]} 36. Rh1 {[%clk
0:01:14.2]} 36... Kh7 {[%clk 0:00:59.1]} 37. b3 {[%clk 0:01:12.6]} 37... Bf8
{[%clk 0:00:58.6]} 38. Kf3 {[%clk 0:01:07.6]} 38... Bh6 {[%clk 0:00:57.2]} 39.
Kg3 {[%clk 0:01:07.3]} 39... Nd7 {[%clk 0:00:56.9]} 40. Rad1 {[%clk 0:01:03.8]}
40... Rc7 {[%clk 0:00:55.5]} 41. Ne1 {[%clk 0:01:00.9]} 41... Ndc5 {[%clk
0:00:52.9]} 42. Nf3 {[%clk 0:01:00.2]} 42... Ree7 {[%clk 0:00:50.7]} 43. Ra1
{[%clk 0:00:53.3]} 43... Re8 {[%clk 0:00:48.7]} 44. Rhb1 {[%clk 0:00:50.7]}
44... Ree7 {[%clk 0:00:38.8]} 45. Ng5+ {[%clk 0:00:50.4]} 45... Bxg5 {[%clk
0:00:33.6]} 46. hxg5 {[%clk 0:00:49.9]} 46... Kg7 {[%clk 0:00:32.7]} 47. Kf3
{[%clk 0:00:49.4]} 47... Nd8 {[%clk 0:00:31.1]} 48. b4 {[%clk 0:00:47.9]} 48...
axb4 {[%clk 0:00:29.6]} 49. Rxb4 {[%clk 0:00:47.1]} 49... Nd7 {[%clk 0:00:26.9]}
50. Rb5 {[%clk 0:00:44.2]} 50... Nc6 {[%clk 0:00:26.9]} 51. Bd5 {[%clk
0:00:41.1]} 51... Na7 {[%clk 0:00:22.8]} 52. Rb2 {[%clk 0:00:38.9]} 52... Rc5
{[%clk 0:00:23]} 53. Bc4 {[%clk 0:00:35]} 53... Nc6 {[%clk 0:00:23.1]} 54. Rb5
{[%clk 0:00:32]} 54... Ndxe5+ {[%clk 0:00:18.2]} 55. fxe5 {[%clk 0:00:31]} 55...
Nxe5+ {[%clk 0:00:18.6]} 56. Kf2 {[%clk 0:00:29.1]} 56... Nxc4 {[%clk
0:00:16.9]} 57. dxc4 {[%clk 0:00:28.1]} 57... Rxc4 {[%clk 0:00:17.2]} 58. Rxb6
{[%clk 0:00:26.3]} 58... d3 {[%clk 0:00:17.2]} 59. Re1 {[%clk 0:00:24.8]} 59...
Rxe1 {[%clk 0:00:15.2]} 60. Kxe1 {[%clk 0:00:24.2]} 60... Rxa4 {[%clk
0:00:15.6]} 61. Bc3+ {[%clk 0:00:23.7]} 61... Kf7 {[%clk 0:00:15.8]} 62. Kd2
{[%clk 0:00:23.3]} 62... Rg4 {[%clk 0:00:15.1]} 63. Rf6+ {[%clk 0:00:22.4]}
63... Ke7 {[%clk 0:00:15.4]} 64. Rxg6 {[%clk 0:00:22.4]} 64... h4 {[%clk
0:00:15.7]} 65. Kxd3 {[%clk 0:00:21.7]} 65... h3 {[%clk 0:00:15.6]} 66. Bf6+
{[%clk 0:00:21.3]} 66... Ke6 {[%clk 0:00:15.5]} 67. Rh6 {[%clk 0:00:21]} 67...
Rg3+ {[%clk 0:00:14.5]} 68. Kd4 {[%clk 0:00:20.7]} 68... f4 {[%clk 0:00:14.9]}
69. Ke4 {[%clk 0:00:20.6]} 69... f3 {[%clk 0:00:15.3]} 70. Ke3 {[%clk
0:00:20.5]} 70... Kf5 {[%clk 0:00:15.3]} 71. Bd8 {[%clk 0:00:17.8]} 71... Kg4
{[%clk 0:00:14.6]} 72. g6 {[%clk 0:00:17.4]} 72... Kf5 {[%clk 0:00:14.5]} 73.
Bc7 {[%clk 0:00:15.3]} 73... Rxg6 {[%clk 0:00:14.5]} 74. Rxh3 {[%clk 0:00:14.8]}
74... Re6+ {[%clk 0:00:14]} 75. Kxf3 {[%clk 0:00:14.5]} 75... Rc6 {[%clk
0:00:14.6]} 76. Bf4 {[%clk 0:00:14]} 76... Rc3+ {[%clk 0:00:14.4]} 77. Be3
{[%clk 0:00:14]} 77... Rb3 {[%clk 0:00:14.9]} 78. Rh5+ {[%clk 0:00:13]} 78...
Ke6 {[%clk 0:00:15.2]} 79. Ke4 {[%clk 0:00:12.9]} 79... Rb4+ {[%clk 0:00:15.7]}
80. Bd4 {[%clk 0:00:13.2]} 80... Rb1 {[%clk 0:00:15.9]} 81. Rh6+ {[%clk
0:00:13.3]} 81... Ke7 {[%clk 0:00:16.3]} 82. Kd5 {[%clk 0:00:13.4]} 82... Rd1
{[%clk 0:00:14.2]} 83. Rh7+ {[%clk 0:00:12.9]} 83... Kd8 {[%clk 0:00:13.4]} 84.
Kc5 {[%clk 0:00:12.4]} 84... Ke8 {[%clk 0:00:13.7]} 85. Be5 {[%clk 0:00:10.8]}
85... Rd7 {[%clk 0:00:13.6]} 86. Rh6 {[%clk 0:00:10.2]} 86... Rd1 {[%clk
0:00:13.4]} 87. Bd6 {[%clk 0:00:10]} 87... Kd7 {[%clk 0:00:12.6]} 88. Bf4 {[%clk
0:00:07.7]} 88... Rc1+ {[%clk 0:00:12.4]} 89. Bxc1 {[%clk 0:00:06]} 1-0

[Event "*** Titled Tuesday Blitz"]
[Site "Chess.com"]
[Date "2020.04.21"]
[Round "3"]
[White "pgradalski"]
[Black "stasiek18"]
[Result "0-1"]
[WhiteElo "2201"]
[BlackElo "2421"]
[TimeControl "180+1"]
[EndTime "10:23:22 PDT"]
[Termination "stasiek18 won by resignation"]

1. e4 {[%clk 0:03:00.9]} 1... g6 {[%clk 0:03:00]} 2. d4 {[%clk 0:02:58.1]} 2...
Bg7 {[%clk 0:03:00.2]} 3. Nc3 {[%clk 0:02:55.6]} 3... a6 {[%clk 0:02:59.9]} 4.
Be3 {[%clk 0:02:53]} 4... b5 {[%clk 0:02:59.3]} 5. a3 {[%clk 0:02:50.6]} 5...
Bb7 {[%clk 0:02:58.1]} 6. Qd2 {[%clk 0:02:49.1]} 6... d6 {[%clk 0:02:57.7]} 7.
h4 {[%clk 0:02:36.1]} 7... h6 {[%clk 0:02:57.5]} 8. Bd3 {[%clk 0:02:31]} 8...
Nd7 {[%clk 0:02:55.1]} 9. O-O-O {[%clk 0:02:20]} 9... c5 {[%clk 0:02:53.6]} 10.
f4 {[%clk 0:01:55.4]} 10... cxd4 {[%clk 0:02:52.1]} 11. Nce2 {[%clk 0:01:51.5]}
11... dxe3 {[%clk 0:02:51.7]} 0-1

[Event "*** Titled Tuesday Blitz"]
[Site "Chess.com"]
[Date "2020.04.21"]
[Round "3"]
[White "PavlovDanila"]
[Black "Vice64"]
[Result "1-0"]
[WhiteElo "2758"]
[BlackElo "2526"]
[TimeControl "180+1"]
[EndTime "10:23:39 PDT"]
[Termination "PavlovDanila won by resignation"]

1. e4 {[%clk 0:03:00.9]} 1... c5 {[%clk 0:02:59.6]} 2. Nf3 {[%clk 0:03:00.9]}
2... a6 {[%clk 0:02:59.9]} 3. d4 {[%clk 0:03:01.5]} 3... cxd4 {[%clk 0:03:00.3]}
4. Nxd4 {[%clk 0:03:02.4]} 4... e5 {[%clk 0:03:00.6]} 5. Nb3 {[%clk 0:03:00.5]}
5... Nf6 {[%clk 0:03:00.3]} 6. Nc3 {[%clk 0:03:00.5]} 6... Bb4 {[%clk 0:03:00]}
7. Bg5 {[%clk 0:03:00.5]} 7... O-O {[%clk 0:02:57.4]} 8. Bc4 {[%clk 0:02:58.1]}
8... h6 {[%clk 0:02:57.1]} 9. Bxf6 {[%clk 0:02:55.1]} 9... Qxf6 {[%clk
0:02:53.3]} 10. O-O {[%clk 0:02:54.8]} 10... Bxc3 {[%clk 0:02:52.2]} 11. bxc3
{[%clk 0:02:54.7]} 11... d6 {[%clk 0:02:51.9]} 12. Bd5 {[%clk 0:02:53.5]} 12...
Nc6 {[%clk 0:02:47.7]} 13. Qd3 {[%clk 0:02:49.1]} 13... Be6 {[%clk 0:02:41.6]}
14. Bxc6 {[%clk 0:02:38.4]} 14... Bxb3 {[%clk 0:02:38.8]} 15. Bxb7 {[%clk
0:02:30.1]} 15... Rab8 {[%clk 0:02:34.5]} 16. axb3 {[%clk 0:02:29.4]} 16... Rxb7
{[%clk 0:02:34.2]} 17. Rxa6 {[%clk 0:02:29.9]} 17... Rd8 {[%clk 0:02:33.6]} 18.
Rd1 {[%clk 0:02:29.1]} 18... Rbd7 {[%clk 0:02:32.7]} 19. c4 {[%clk 0:02:28]}
19... Qe7 {[%clk 0:02:33]} 20. Ra5 {[%clk 0:02:24.9]} 20... g6 {[%clk 0:02:32]}
21. Rd5 {[%clk 0:02:25.4]} 21... f5 {[%clk 0:02:32.3]} 22. exf5 {[%clk
0:02:25.6]} 22... gxf5 {[%clk 0:02:32.6]} 23. Qxf5 {[%clk 0:02:26]} 23... Rf8
{[%clk 0:02:33]} 24. Qg6+ {[%clk 0:02:21.2]} 1-0

[Event "*** Titled Tuesday Blitz"]
[Site "Chess.com"]
[Date "2020.04.21"]
[Round "3"]
[White "YaWaleriy"]
[Black "tacticthunder"]
[Result "0-1"]
[WhiteElo "2247"]
[BlackElo "2623"]
[TimeControl "180+1"]
[EndTime "10:24:16 PDT"]
[Termination "tacticthunder won by resignation"]

1. d4 {[%clk 0:03:00.9]} 1... Nf6 {[%clk 0:02:59.5]} 2. c4 {[%clk 0:03:00.9]}
2... e6 {[%clk 0:02:59.2]} 3. Nf3 {[%clk 0:02:59.8]} 3... Bb4+ {[%clk
0:02:56.8]} 4. Nbd2 {[%clk 0:02:59.3]} 4... O-O {[%clk 0:02:55.8]} 5. e3 {[%clk
0:02:59.8]} 5... d6 {[%clk 0:02:55.3]} 6. Bd3 {[%clk 0:03:00.1]} 6... Qe7 {[%clk
0:02:34.3]} 7. O-O {[%clk 0:02:59.4]} 7... Bxd2 {[%clk 0:02:34.6]} 8. Nxd2
{[%clk 0:02:58.3]} 8... e5 {[%clk 0:02:35.5]} 9. e4 {[%clk 0:02:56.6]} 9... exd4
{[%clk 0:02:33.3]} 10. b4 {[%clk 0:02:54.1]} 10... c5 {[%clk 0:02:31.6]} 11. b5
{[%clk 0:02:50.3]} 11... Re8 {[%clk 0:02:23.3]} 12. f4 {[%clk 0:02:49.9]} 12...
Nbd7 {[%clk 0:02:20.5]} 13. h3 {[%clk 0:02:48.8]} 13... Nf8 {[%clk 0:02:19.9]}
14. Qc2 {[%clk 0:02:47.8]} 14... Ng6 {[%clk 0:02:14.1]} 15. a4 {[%clk
0:02:43.8]} 15... Bd7 {[%clk 0:02:03.5]} 16. Bb2 {[%clk 0:02:43.6]} 16... Nh5
{[%clk 0:01:56.9]} 17. f5 {[%clk 0:02:34.5]} 17... Ne5 {[%clk 0:01:51.1]} 18.
Rae1 {[%clk 0:02:34.2]} 18... Qh4 {[%clk 0:01:40.9]} 19. Nf3 {[%clk 0:02:32.3]}
19... Nxf3+ {[%clk 0:01:39.3]} 20. Rxf3 {[%clk 0:02:31.5]} 20... Qxe1+ {[%clk
0:01:37.8]} 0-1

[Event "*** Titled Tuesday Blitz"]
[Site "Chess.com"]
[Date "2020.04.21"]
[Round "3"]
[White "Phriex"]
[Black "Gabix_94"]
[Result "0-1"]
[WhiteElo "2463"]
[BlackElo "2818"]
[TimeControl "180+1"]
[EndTime "10:25:26 PDT"]
[Termination "Gabix_94 won by resignation"]

1. d4 {[%clk 0:03:00.9]} 1... Nf6 {[%clk 0:02:59.1]} 2. c4 {[%clk 0:03:01.4]}
2... g6 {[%clk 0:02:59.2]} 3. g3 {[%clk 0:03:01.6]} 3... Bg7 {[%clk 0:02:59.8]}
4. Bg2 {[%clk 0:03:02.3]} 4... O-O {[%clk 0:03:00.2]} 5. Nc3 {[%clk 0:03:03]}
5... d6 {[%clk 0:03:00.7]} 6. Nf3 {[%clk 0:03:03.6]} 6... Nbd7 {[%clk
0:03:01.3]} 7. O-O {[%clk 0:03:04.2]} 7... e5 {[%clk 0:03:01.6]} 8. h3 {[%clk
0:03:05]} 8... c6 {[%clk 0:03:00.5]} 9. e4 {[%clk 0:03:04.9]} 9... Qa5 {[%clk
0:03:00.3]} 10. Qc2 {[%clk 0:03:00.2]} 10... Nb6 {[%clk 0:02:55]} 11. dxe5
{[%clk 0:02:17.7]} 11... dxe5 {[%clk 0:02:55.9]} 12. b3 {[%clk 0:02:17.1]} 12...
Nbd7 {[%clk 0:02:50.6]} 13. a3 {[%clk 0:02:08.5]} 13... Qc7 {[%clk 0:02:50.1]}
14. b4 {[%clk 0:02:07.4]} 14... a5 {[%clk 0:02:49.3]} 15. Bb2 {[%clk 0:02:03.5]}
15... Nb6 {[%clk 0:02:48.6]} 16. c5 {[%clk 0:02:01.2]} 16... Nc4 {[%clk
0:02:46.6]} 17. Rfd1 {[%clk 0:02:01.7]} 17... h6 {[%clk 0:02:39.2]} 18. Bf1
{[%clk 0:01:52.9]} 18... Nxb2 {[%clk 0:02:37.3]} 19. Qxb2 {[%clk 0:01:52.9]}
19... Be6 {[%clk 0:02:36.4]} 20. Na4 {[%clk 0:01:49.9]} 20... Nxe4 {[%clk
0:02:28.1]} 21. Nb6 {[%clk 0:01:49.6]} 21... Rad8 {[%clk 0:02:27.1]} 22. Re1
{[%clk 0:01:50]} 22... Nxg3 {[%clk 0:02:21.1]} 23. fxg3 {[%clk 0:01:47.3]} 23...
e4 {[%clk 0:02:20.8]} 24. Qf2 {[%clk 0:01:44.3]} 24... exf3 {[%clk 0:02:16.6]}
25. Rad1 {[%clk 0:01:44.4]} 25... axb4 {[%clk 0:02:13.3]} 26. axb4 {[%clk
0:01:44.5]} 26... Bc3 {[%clk 0:02:01.9]} 27. Rxd8 {[%clk 0:01:41.8]} 27... Rxd8
{[%clk 0:02:02.8]} 28. Re4 {[%clk 0:01:41.9]} 28... Bf5 {[%clk 0:01:54.9]} 29.
Rf4 {[%clk 0:01:36.9]} 29... Qxf4 {[%clk 0:01:46.1]} 30. gxf4 {[%clk 0:01:36.9]}
30... Bd4 {[%clk 0:01:46.8]} 0-1

[Event "*** Titled Tuesday Blitz"]
[Site "Chess.com"]
[Date "2020.04.21"]
[Round "3"]
[White "exoticprincess"]
[Black "Koksik_13"]
[Result "1-0"]
[WhiteElo "2862"]
[BlackElo "2641"]
[TimeControl "180+1"]
[EndTime "10:25:27 PDT"]
[Termination "exoticprincess won by resignation"]

1. d4 {[%clk 0:03:00.9]} 1... e6 {[%clk 0:03:00.2]} 2. c4 {[%clk 0:03:00.1]}
2... d5 {[%clk 0:03:00]} 3. Nc3 {[%clk 0:03:00.5]} 3... a6 {[%clk 0:02:59.9]} 4.
c5 {[%clk 0:02:59.8]} 4... c6 {[%clk 0:02:54.1]} 5. e4 {[%clk 0:02:58.4]} 5...
dxe4 {[%clk 0:02:47.3]} 6. Nxe4 {[%clk 0:02:57.2]} 6... Nf6 {[%clk 0:02:47.7]}
7. Nxf6+ {[%clk 0:02:56.8]} 7... gxf6 {[%clk 0:02:40.4]} 8. Nf3 {[%clk
0:02:57.7]} 8... b6 {[%clk 0:02:40.3]} 9. cxb6 {[%clk 0:02:52.9]} 9... Qxb6
{[%clk 0:02:39.8]} 10. Bd3 {[%clk 0:02:53.5]} 10... Bb4+ {[%clk 0:02:38.8]} 11.
Bd2 {[%clk 0:02:53.4]} 11... c5 {[%clk 0:02:35.5]} 12. O-O {[%clk 0:02:45.9]}
12... Bxd2 {[%clk 0:02:34.8]} 13. Qxd2 {[%clk 0:02:41]} 13... Bb7 {[%clk
0:02:34.4]} 14. dxc5 {[%clk 0:02:39.7]} 14... Qxc5 {[%clk 0:02:31.3]} 15. Rac1
{[%clk 0:02:40]} 15... Qd5 {[%clk 0:02:10.5]} 16. Rfe1 {[%clk 0:02:12.3]} 16...
Rg8 {[%clk 0:02:08.2]} 17. Be4 {[%clk 0:02:12.5]} 17... Qxd2 {[%clk 0:02:06]}
18. Nxd2 {[%clk 0:02:13.4]} 18... Bxe4 {[%clk 0:02:01.5]} 19. Rc8+ {[%clk
0:02:11.7]} 19... Ke7 {[%clk 0:01:58.2]} 20. Rxg8 {[%clk 0:02:12.6]} 20... Nd7
{[%clk 0:01:51.1]} 21. Rxa8 {[%clk 0:02:11.5]} 21... Bxa8 {[%clk 0:01:52]} 22.
Rc1 {[%clk 0:02:09.9]} 22... Kd6 {[%clk 0:01:50.5]} 23. Nc4+ {[%clk 0:02:09.1]}
23... Ke7 {[%clk 0:01:46.6]} 24. f3 {[%clk 0:02:08.4]} 24... Bd5 {[%clk
0:01:47.5]} 25. b3 {[%clk 0:02:06.7]} 25... e5 {[%clk 0:01:47.7]} 26. Ne3 {[%clk
0:02:05.7]} 26... Be6 {[%clk 0:01:47.8]} 27. Rc6 {[%clk 0:02:05.7]} 27... a5
{[%clk 0:01:46.7]} 28. Ra6 {[%clk 0:02:06]} 28... f5 {[%clk 0:01:46.7]} 29. Rxa5
{[%clk 0:02:06.2]} 29... f4 {[%clk 0:01:46.9]} 30. Nd5+ {[%clk 0:02:06.5]} 30...
Kd6 {[%clk 0:01:46.4]} 31. Nc3 {[%clk 0:02:07]} 31... f5 {[%clk 0:01:45.8]} 32.
b4 {[%clk 0:02:07.4]} 32... Nb6 {[%clk 0:01:44.8]} 33. a4 {[%clk 0:02:02.9]}
33... Nc4 {[%clk 0:01:44.8]} 34. Rc5 {[%clk 0:02:01.6]} 34... Nd2 {[%clk
0:01:43]} 35. Nb5+ {[%clk 0:02:00.9]} 35... Ke7 {[%clk 0:01:42.2]} 1-0

[Event "*** Titled Tuesday Blitz"]
[Site "Chess.com"]
[Date "2020.04.21"]
[Round "3"]
[White "ferdipy"]
[Black "CroissantNeuf"]
[Result "1-0"]
[WhiteElo "2214"]
[BlackElo "2374"]
[TimeControl "180+1"]
[EndTime "10:25:38 PDT"]
[Termination "ferdipy won by resignation"]

1. e4 {[%clk 0:02:57.2]} 1... e5 {[%clk 0:02:59.4]} 2. Nf3 {[%clk 0:02:56.6]}
2... Nc6 {[%clk 0:02:59.9]} 3. Bc4 {[%clk 0:02:56.6]} 3... Nf6 {[%clk
0:02:59.4]} 4. Ng5 {[%clk 0:02:56.7]} 4... d5 {[%clk 0:02:59.3]} 5. exd5 {[%clk
0:02:56.4]} 5... Na5 {[%clk 0:02:59.4]} 6. Bb5+ {[%clk 0:02:56.4]} 6... c6
{[%clk 0:02:59.7]} 7. dxc6 {[%clk 0:02:56.9]} 7... bxc6 {[%clk 0:03:00.2]} 8.
Be2 {[%clk 0:02:57.6]} 8... h6 {[%clk 0:02:56.8]} 9. Nf3 {[%clk 0:02:57.7]} 9...
e4 {[%clk 0:02:54.9]} 10. Ne5 {[%clk 0:02:57.8]} 10... Bc5 {[%clk 0:02:50]} 11.
c3 {[%clk 0:02:57.1]} 11... Bd6 {[%clk 0:02:46.8]} 12. d4 {[%clk 0:02:56.5]}
12... exd3 {[%clk 0:02:45.1]} 13. Nxd3 {[%clk 0:02:56.1]} 13... O-O {[%clk
0:02:44.9]} 14. O-O {[%clk 0:02:53.6]} 14... Re8 {[%clk 0:02:44.1]} 15. h3
{[%clk 0:02:24.9]} 15... Ba6 {[%clk 0:02:42.4]} 16. Nf4 {[%clk 0:02:17]} 16...
Bxe2 {[%clk 0:01:45.7]} 17. Nxe2 {[%clk 0:02:17.9]} 17... Qc7 {[%clk 0:01:39.2]}
18. b3 {[%clk 0:02:07.6]} 18... Rad8 {[%clk 0:01:35.9]} 19. Qc2 {[%clk
0:02:04.6]} 19... c5 {[%clk 0:01:30.5]} 20. Na3 {[%clk 0:01:59]} 20... c4 {[%clk
0:01:23.4]} 21. b4 {[%clk 0:01:54.9]} 21... Nb7 {[%clk 0:01:18.4]} 22. Nb5
{[%clk 0:01:50.7]} 22... Be5 {[%clk 0:01:04.4]} 23. Nxc7 {[%clk 0:01:48.1]} 1-0

[Event "*** Titled Tuesday Blitz"]
[Site "Chess.com"]
[Date "2020.04.21"]
[Round "3"]
[White "Shazuli9878"]
[Black "Boundless_Strike"]
[Result "0-1"]
[WhiteElo "2393"]
[BlackElo "2608"]
[TimeControl "180+1"]
[EndTime "10:25:43 PDT"]
[Termination "Boundless_Strike won by resignation"]

1. Nf3 {[%clk 0:02:59.2]} 1... f5 {[%clk 0:02:58.1]} 2. d4 {[%clk 0:03:00.1]}
2... Nf6 {[%clk 0:02:57.6]} 3. g3 {[%clk 0:03:00.1]} 3... g6 {[%clk 0:02:57.9]}
4. Bg2 {[%clk 0:03:01]} 4... Bg7 {[%clk 0:02:58.8]} 5. O-O {[%clk 0:03:01.9]}
5... O-O {[%clk 0:02:59.4]} 6. c4 {[%clk 0:03:01.8]} 6... d6 {[%clk 0:02:59.5]}
7. Nc3 {[%clk 0:03:01.7]} 7... c6 {[%clk 0:02:59.6]} 8. b3 {[%clk 0:03:00.9]}
8... e5 {[%clk 0:02:58.6]} 9. dxe5 {[%clk 0:03:00.8]} 9... dxe5 {[%clk
0:02:59.5]} 10. Qxd8 {[%clk 0:03:00.5]} 10... Rxd8 {[%clk 0:02:59.5]} 11. Bg5
{[%clk 0:02:51.5]} 11... e4 {[%clk 0:02:54]} 12. Ne1 {[%clk 0:02:24.7]} 12... h6
{[%clk 0:02:47.2]} 13. Bxf6 {[%clk 0:02:23.5]} 13... Bxf6 {[%clk 0:02:48.1]} 14.
Rc1 {[%clk 0:02:24.1]} 14... Rd2 {[%clk 0:02:48.5]} 15. Na4 {[%clk 0:02:13.9]}
15... Rxa2 {[%clk 0:02:43]} 16. Nc2 {[%clk 0:02:13.1]} 16... Na6 {[%clk
0:02:38.9]} 17. Rfd1 {[%clk 0:02:09]} 17... b5 {[%clk 0:02:25.6]} 18. cxb5
{[%clk 0:01:59]} 18... cxb5 {[%clk 0:02:25.5]} 19. Rd6 {[%clk 0:01:58.9]} 19...
Kf7 {[%clk 0:02:25]} 20. Rxa6 {[%clk 0:01:54.9]} 20... Bxa6 {[%clk 0:02:16.5]}
21. Nc5 {[%clk 0:01:54.6]} 21... Rc8 {[%clk 0:01:55.3]} 22. Nb4 {[%clk
0:01:54.4]} 22... Ra3 {[%clk 0:01:53.8]} 23. e3 {[%clk 0:01:42.8]} 23... Be7
{[%clk 0:01:52.7]} 24. Nbxa6 {[%clk 0:01:39.5]} 24... Rxa6 {[%clk 0:01:52.1]}
25. Nxa6 {[%clk 0:01:39.6]} 25... Rxc1+ {[%clk 0:01:51.7]} 26. Bf1 {[%clk
0:01:40.5]} 26... Bd6 {[%clk 0:01:52.1]} 27. Kg2 {[%clk 0:01:40]} 27... b4
{[%clk 0:01:52.3]} 28. h3 {[%clk 0:01:37.9]} 28... g5 {[%clk 0:01:43.7]} 0-1

[Event "*** Titled Tuesday Blitz"]
[Site "Chess.com"]
[Date "2020.04.21"]
[Round "3"]
[White "leoduarte"]
[Black "blobica"]
[Result "0-1"]
[WhiteElo "2254"]
[BlackElo "2534"]
[TimeControl "180+1"]
[EndTime "10:25:46 PDT"]
[Termination "blobica won by resignation"]

1. e4 {[%clk 0:03:00.9]} 1... c6 {[%clk 0:02:59.4]} 2. d4 {[%clk 0:02:59.6]}
2... d5 {[%clk 0:02:59.6]} 3. Nc3 {[%clk 0:02:59.8]} 3... dxe4 {[%clk
0:02:58.9]} 4. Nxe4 {[%clk 0:03:00.7]} 4... Nf6 {[%clk 0:02:58.6]} 5. Nxf6+
{[%clk 0:03:00.6]} 5... exf6 {[%clk 0:02:58.6]} 6. c3 {[%clk 0:02:58.7]} 6...
Bd6 {[%clk 0:02:58.5]} 7. Bd3 {[%clk 0:02:58.8]} 7... O-O {[%clk 0:02:58]} 8.
Qc2 {[%clk 0:02:59.1]} 8... Re8+ {[%clk 0:02:58.2]} 9. Ne2 {[%clk 0:02:59.5]}
9... h5 {[%clk 0:02:58.4]} 10. Be3 {[%clk 0:02:41.2]} 10... Qc7 {[%clk
0:02:57.7]} 11. O-O-O {[%clk 0:02:40.5]} 11... Nd7 {[%clk 0:02:57.5]} 12. h4
{[%clk 0:02:34.2]} 12... Nf8 {[%clk 0:02:55.8]} 13. g3 {[%clk 0:02:17.5]} 13...
Bg4 {[%clk 0:02:53.9]} 14. Rde1 {[%clk 0:02:14]} 14... Re7 {[%clk 0:02:45.7]}
15. Qd2 {[%clk 0:01:52.4]} 15... Rae8 {[%clk 0:02:43.5]} 16. Bf4 {[%clk
0:01:48.2]} 16... Bxe2 {[%clk 0:02:19.5]} 17. Bxd6 {[%clk 0:01:43.5]} 17... Qxd6
{[%clk 0:02:18.9]} 18. Bxe2 {[%clk 0:01:24.9]} 18... Qd5 {[%clk 0:01:57.8]} 19.
a3 {[%clk 0:01:23.9]} 19... Rxe2 {[%clk 0:01:55]} 20. Rxe2 {[%clk 0:01:04.2]}
20... Rxe2 {[%clk 0:01:49.3]} 21. Qxe2 {[%clk 0:01:00.7]} 21... Qxh1+ {[%clk
0:01:48.4]} 22. Kc2 {[%clk 0:01:00.1]} 22... Qd5 {[%clk 0:01:46.5]} 0-1

[Event "*** Titled Tuesday Blitz"]
[Site "Chess.com"]
[Date "2020.04.21"]
[Round "3"]
[White "SanchezKelvin"]
[Black "AlexandraSamaganova"]
[Result "1-0"]
[WhiteElo "2404"]
[BlackElo "2109"]
[TimeControl "180+1"]
[EndTime "10:25:47 PDT"]
[Termination "SanchezKelvin won by resignation"]

1. d4 {[%clk 0:01:14.2]} 1... Nf6 {[%clk 0:02:56.9]} 2. c4 {[%clk 0:01:14]} 2...
e6 {[%clk 0:02:51.1]} 3. Nf3 {[%clk 0:01:13.8]} 3... Bb4+ {[%clk 0:02:45.8]} 4.
Nbd2 {[%clk 0:01:13.4]} 4... Ne4 {[%clk 0:02:44]} 5. Qc2 {[%clk 0:01:12.8]} 5...
Nxd2 {[%clk 0:02:43.7]} 6. Bxd2 {[%clk 0:01:12.4]} 6... Bxd2+ {[%clk 0:02:44]}
7. Qxd2 {[%clk 0:01:13.2]} 7... O-O {[%clk 0:02:44.9]} 8. e4 {[%clk 0:01:12.8]}
8... d5 {[%clk 0:02:40.3]} 9. Bd3 {[%clk 0:01:11.2]} 9... dxe4 {[%clk
0:02:26.5]} 10. Bxe4 {[%clk 0:01:11.3]} 10... Qf6 {[%clk 0:02:18.5]} 11. O-O-O
{[%clk 0:01:09.7]} 11... Rd8 {[%clk 0:02:12.5]} 12. Qe3 {[%clk 0:01:09.2]} 12...
c6 {[%clk 0:02:08.1]} 13. h4 {[%clk 0:01:07.9]} 13... a5 {[%clk 0:02:05.7]} 14.
g4 {[%clk 0:01:07.4]} 14... b5 {[%clk 0:02:00]} 15. cxb5 {[%clk 0:01:05.5]}
15... Bd7 {[%clk 0:01:49.7]} 16. g5 {[%clk 0:01:03.7]} 16... Qe7 {[%clk
0:01:49.5]} 17. Kb1 {[%clk 0:01:03.7]} 17... Ra7 {[%clk 0:01:48.2]} 18. d5
{[%clk 0:00:54.7]} 18... exd5 {[%clk 0:01:43.3]} 19. Bxh7+ {[%clk 0:00:53]} 1-0